bitfinex-derivatives/quotes_BTCF0:USTF0_20250709
["timestamp","ask_amount","ask_price","bid_price","bid_amount"]
[1752073856533,0.92466741,109040.0,109030.0,0.01258764]
[1752073856733,0.92466741,109040.0,109030.0,0.00183427]
[1752073856937,1.00431083,109040.0,109030.0,0.00183427]
[1752073857540,1.40212646,109040.0,109030.0,0.00483427]
[1752073857738,1.41930901,109040.0,109030.0,0.00483427]
[1752073857936,1.30281338,109040.0,109030.0,0.00483427]
[1752073858252,1.30281338,109040.0,109030.0,0.22669627]
[1752073858448,1.30281338,109040.0,109030.0,0.26784965]
[1752073858835,0.66069338,109040.0,109030.0,0.26784965]
[1752073859042,1.27077338,109040.0,109030.0,0.29854965]
[1752073859450,1.27077338,109040.0,109030.0,0.65934965]
[1752073859643,0.84261775,109040.0,109030.0,0.65934965]
[1752073860248,0.84261775,109040.0,109030.0,0.64859627]
[1752073861042,1.24043338,109040.0,109030.0,0.64859627]
[1752073861243,1.22325083,109040.0,109030.0,0.64859627]
[1752073861444,1.24072961,109040.0,109030.0,0.04871427]
[1752073861745,1.30422961,109040.0,109030.0,0.01831427]
[1752073861951,1.66502961,109040.0,109030.0,0.00283427]
[1752073862451,1.30422961,109040.0,109030.0,0.00283427]
[1752073863353,1.70204524,109040.0,109030.0,0.00283427]
[1752073863740,1.30422961,109040.0,109030.0,0.00283427]
[1752073864851,1.66502961,109040.0,109030.0,0.00283427]
[1752073865350,2.06284524,109040.0,109030.0,0.00283427]
[1752073865556,0.1834289,109020.0,109010.0,0.5993082]
[1752073865757,0.1834289,109020.0,109010.0,0.62555058]
[1752073865758,1.22316453,109020.0,109010.0,0.62555058]
[1752073865941,1.22316453,109020.0,109010.0,0.6451958]
[1752073866146,1.22316453,109020.0,109010.0,0.02623518]
[1752073866147,1.24084869,109020.0,109010.0,0.02623518]
[1752073866344,1.31403404,109020.0,109010.0,0.02623518]
[1752073866655,1.31403404,109020.0,109010.0,0.23465098]
[1752073866854,1.31403404,109020.0,109010.0,0.29885098]
[1752073867044,1.31403404,109020.0,109010.0,0.11540518]
[1752073867246,1.31403404,109020.0,109010.0,0.30185098]
[1752073867448,1.31503404,109020.0,109010.0,0.29885098]
[1752073867849,1.31503404,109020.0,109010.0,0.2880958]
[1752073868154,1.31503404,109020.0,109010.0,0.10465]
[1752073868346,1.31503404,109020.0,109010.0,0.003]
[1752073868841,1.67583404,109020.0,109010.0,0.003]
[1752073869046,0.1834461,109010.0,109000.0,0.00183478]
[1752073869254,1.00656173,109010.0,109000.0,0.00183478]
[1752073870458,1.64840173,109010.0,109000.0,0.00183478]
[1752073870955,1.64840173,109010.0,109000.0,0.01838478]
[1752073871149,1.28760173,109010.0,109000.0,0.01838478]
[1752073871655,1.64840173,109010.0,109000.0,0.20184718]
[1752073871857,0.64576173,109010.0,109000.0,0.20184718]
[1752073872151,1.28752173,109010.0,109000.0,0.20184718]
[1752073872355,1.22302173,109010.0,109000.0,0.26784718]
[1752073872551,0.1834461,109010.0,109000.0,0.26784718]
[1752073872760,0.8252061,109010.0,109000.0,0.26784718]
[1752073872951,0.1834461,109010.0,109000.0,0.62864718]
[1752073873150,0.15626406,109020.0,109010.0,0.1834456]
[1752073873355,0.33970536,109020.0,109010.0,0.6102456]
[1752073873560,0.98150536,109020.0,109010.0,0.6511756]
[1752073873856,0.98350536,109020.0,109010.0,0.6521756]
[1752073874259,0.98450536,109020.0,109010.0,0.6521756]
[1752073874449,1.38232099,109020.0,109010.0,0.2913756]
[1752073874650,1.38232099,109020.0,109010.0,0.10793]
[1752073874845,1.44642099,109020.0,109010.0,0.07473]
[1752073875246,1.44642099,109020.0,109010.0,0.2581755]
[1752073875452,1.44642099,109020.0,109010.0,0.2253755]
[1752073876657,1.44642099,109020.0,109010.0,0.1844455]
[1752073877154,1.44642099,109020.0,109010.0,0.24427621]
[1752073877355,1.44642099,109020.0,109010.0,0.30697621]
[1752073877555,1.44642099,109020.0,109010.0,0.66777621]
[1752073879357,1.44642099,109020.0,109010.0,0.61069621]
[1752073879562,1.44642099,109020.0,109010.0,0.58069651]
[1752073880061,0.80462099,109020.0,109010.0,0.58069651]
[1752073880268,1.44626099,109020.0,109010.0,0.58069651]
[1752073880863,1.44626099,109020.0,109010.0,0.61099651]
[1752073882860,1.44626099,109020.0,109010.0,0.01990071]
[1752073883062,1.48088831,109020.0,109010.0,0.01990071]
[1752073883268,1.48088831,109020.0,109010.0,0.03645071]
[1752073883563,1.48088831,109020.0,109010.0,0.24427651]
[1752073883766,1.01885268,109020.0,109010.0,0.60507651]
[1752073883965,0.98422536,109020.0,109010.0,0.63537651]
[1752073884170,0.98422536,109020.0,109010.0,0.66777651]
[1752073887463,1.38204099,109020.0,109010.0,0.66777651]
[1752073888567,0.74052099,109020.0,109010.0,0.66777651]
[1752073888766,1.38192099,109020.0,109010.0,0.66777651]
[1752073889266,1.41660714,109020.0,109010.0,0.66777651]
[1752073890669,1.38192099,109020.0,109010.0,0.66777651]
[1752073891171,1.41661221,109020.0,109010.0,0.66777651]
[1752073891361,1.41661685,109020.0,109010.0,0.66777651]
[1752073892970,1.33706025,109020.0,109010.0,0.66777651]
[1752073893367,0.187429,109020.0,109010.0,0.98603554]
[1752073893667,0.828669,109020.0,109010.0,0.98603554]
[1752073894069,0.64524,109020.0,109010.0,0.98603554]
[1752073894266,0.6452,109020.0,109010.0,0.98603554]
[1752073895173,0.828629,109020.0,109010.0,0.98603554]
[1752073895469,0.004,109020.0,109010.0,0.98603554]
[1752073895671,0.64516,109020.0,109010.0,0.98603554]
[1752073896060,0.004,109020.0,109010.0,0.98603554]
[1752073896260,0.187429,109020.0,109010.0,2.26835554]
[1752073897068,0.187429,109020.0,109010.0,2.24945483]
[1752073898069,0.004,109020.0,109010.0,2.26844507]
[1752073899772,0.187429,109020.0,109010.0,2.26844507]
[1752073899974,0.004,109020.0,109010.0,2.26844507]
[1752073900476,0.187429,109020.0,109010.0,0.98612507]
[1752073900776,0.187429,109020.0,109010.0,1.60813483]
[1752073900975,0.187429,109020.0,109010.0,1.62725986]
[1752073902671,0.004,109020.0,109010.0,1.62725986]
[1752073902870,0.187429,109020.0,109010.0,0.98625986]
[1752073903370,0.187429,109020.0,109010.0,1.09593623]
[1752073904978,0.004,109020.0,109010.0,1.09593623]
[1752073905565,0.0323,109030.0,109010.0,1.09593623]
[1752073905765,0.3712505,109040.0,109030.0,0.1834122]
[1752073906069,0.8412959,109040.0,109030.0,0.90205123]
[1752073906269,0.8412959,109040.0,109030.0,0.96435123]
[1752073906971,0.0170898,109040.0,109030.0,0.96435123]
[1752073907673,0.0170898,109040.0,109030.0,1.14777523]
[1752073908377,0.3835038,109060.0,109050.0,0.1833785]
[1752073908569,1.05903869,109060.0,109050.0,0.9215385]
[1752073908776,1.05903869,109060.0,109050.0,0.9445585]
[1752073909381,1.37729772,109060.0,109050.0,0.9445585]
[1752073909575,1.38229772,109060.0,109050.0,0.9455585]
[1752073910078,1.38829772,109060.0,109050.0,0.9465585]
[1752073913791,1.38829772,109060.0,109050.0,0.5857585]
[1752073913987,0.74753772,109060.0,109050.0,0.5857585]
[1752073914187,1.38805772,109060.0,109050.0,0.5857585]
[1752073915291,1.02391519,109060.0,109050.0,0.5857585]
[1752073916292,0.97807249,109060.0,109050.0,0.93631753]
[1752073916590,0.97807249,109060.0,109050.0,0.6180585]
[1752073916786,0.33759249,109060.0,109050.0,0.6180585]
[1752073916983,0.97803249,109060.0,109050.0,0.6512585]
[1752073918079,0.9432576,109060.0,109050.0,0.6512585]
[1752073921587,0.9432576,109060.0,109050.0,0.3628]
[1752073921790,1.26151663,109060.0,109050.0,0.002]
[1752073921989,1.30013566,109060.0,109050.0,0.002]
[1752073922188,1.94037566,109060.0,109050.0,0.002]
[1752073923194,0.1833786,109050.0,109040.0,0.3608]
[1752073923395,0.85099666,109050.0,109040.0,0.3608]
[1752073924297,0.92303889,109050.0,109040.0,0.3608]
[1752073924490,0.92703889,109050.0,109040.0,0.3608]
[1752073924691,0.92703889,109050.0,109040.0,0.5441954]
[1752073925289,0.92703889,109050.0,109040.0,0.5451954]
[1752073925487,0.93303889,109050.0,109040.0,0.5451954]
[1752073926402,0.65012,109050.0,109040.0,0.88001443]
[1752073926594,0.01,109050.0,109040.0,0.88001443]
[1752073926899,0.65012,109050.0,109040.0,0.94401443]
[1752073927096,0.65012,109050.0,109040.0,0.96703443]
[1752073927600,0.01,109050.0,109040.0,0.96703443]
[1752073928393,0.01,109050.0,109040.0,0.6487754]
[1752073928699,0.01,109050.0,109040.0,1.03892985]
[1752073931199,0.01,109050.0,109040.0,1.14860622]
[1752073932198,0.01,109050.0,109040.0,0.83034719]
[1752073932390,0.01,109050.0,109040.0,1.0767108]
[1752073938003,0.01,109050.0,109040.0,1.14987877]
[1752073941907,0.006,109050.0,109040.0,1.14887877]
[1752073942505,0.002,109050.0,109040.0,1.14887877]
[1752073942708,0.003,109050.0,109040.0,1.14887877]
[1752073943696,0.1863784,109050.0,109040.0,0.83061974]
[1752073944009,0.50463743,109050.0,109040.0,0.69345177]
[1752073944205,1.20753743,109050.0,109040.0,0.69345177]
[1752073944403,1.20753743,109050.0,109040.0,0.66938177]
[1752073944602,1.52579646,109050.0,109040.0,0.48598637]
[1752073944803,1.20753743,109050.0,109040.0,0.48598637]
[1752073945004,1.20753743,109050.0,109040.0,0.66938157]
[1752073945201,1.20753743,109050.0,109040.0,0.5441952]
[1752073945806,1.20753743,109050.0,109040.0,0.5597052]
[1752073946211,1.20753743,109050.0,109040.0,0.69212157]
[1752073949704,1.20753743,109050.0,109040.0,0.5597052]
[1752073950210,1.20753743,109050.0,109040.0,0.5441952]
[1752073950409,1.20753743,109050.0,109040.0,0.65387157]
[1752073950608,1.20753743,109050.0,109040.0,0.5441952]
[1752073950911,1.28185261,109050.0,109040.0,0.5597052]
[1752073951298,1.28185261,109050.0,109040.0,0.3608]
[1752073951914,1.28185261,109050.0,109040.0,0.5441952]
[1752073952511,0.1833952,109040.0,109030.0,0.78724856]
[1752073952711,0.56465423,109040.0,109030.0,0.80275856]
[1752073953106,0.56465423,109040.0,109030.0,0.44195856]
[1752073953316,0.58231894,109040.0,109030.0,0.29308897]
[1752073953605,0.58231894,109040.0,109030.0,0.1989226]
[1752073954415,0.58231894,109040.0,109030.0,0.1834126]
[1752073954613,0.58331894,109040.0,109030.0,0.1834126]
[1752073955114,0.1834125,109030.0,109020.0,0.81419987]
[1752073955413,1.20687153,109030.0,109020.0,0.82970987]
[1752073956610,1.20687153,109030.0,109020.0,0.83170987]
[1752073956815,1.20687153,109030.0,109020.0,0.78585317]
[1752073957121,0.6394,109030.0,109020.0,1.12331396]
[1752073957413,0.9296791,109040.0,109030.0,0.1834125]
[1752073957617,0.9286791,109040.0,109030.0,0.90072153]
[1752073957916,0.9286791,109040.0,109030.0,0.5824625]
[1752073958613,0.9296791,109040.0,109030.0,0.5824626]
[1752073958813,1.24793813,109040.0,109030.0,0.5824626]
[1752073959913,0.1834126,109030.0,109020.0,0.71056896]
[1752073960113,0.56737163,109030.0,109020.0,0.72585896]
[1752073961115,0.56737163,109030.0,109020.0,0.68000316]
[1752073961509,0.56737163,109030.0,109020.0,0.68100316]
[1752073962616,0.56737163,109030.0,109020.0,0.68300316]
[1752073962922,0.2491126,109030.0,109020.0,0.68300316]
[1752073964917,0.2491126,109030.0,109020.0,1.00126219]
[1752073965119,0.40430489,109040.0,109030.0,0.1834126]
[1752073965318,1.36172392,109040.0,109030.0,0.5827426]
[1752073966027,1.04346489,109040.0,109030.0,0.5827426]
[1752073966321,1.04342489,109040.0,109030.0,0.93350163]
[1752073966713,0.90587009,109040.0,109030.0,0.93350163]
[1752073966919,0.83997009,109040.0,109030.0,0.96580163]
[1752073967116,1.15822912,109040.0,109030.0,0.01529]
[1752073967321,1.22212912,109040.0,109030.0,0.5827425]
[1752073967722,1.22312912,109040.0,109030.0,0.39933]
[1752073967918,1.22312912,109040.0,109030.0,0.5827425]
[1752073968113,0.1834125,109030.0,109020.0,0.74316896]
[1752073968319,0.53277153,109030.0,109020.0,0.75845896]
[1752073968926,0.2145125,109030.0,109020.0,0.75845896]
[1752073969426,0.1834125,109030.0,109020.0,1.18939436]
[1752073969627,0.8224525,109030.0,109020.0,1.18939436]
[1752073971731,0.8224525,109030.0,109020.0,1.17410436]
[1752073972226,0.1834125,109030.0,109020.0,1.17410436]
[1752073972432,0.8224125,109030.0,109020.0,1.17410436]
[1752073977134,0.8224125,109030.0,109020.0,1.06442799]
[1752073977635,0.8224125,109030.0,109020.0,1.17438915]
[1752073979036,0.8224125,109030.0,109020.0,1.15114915]
[1752073985442,0.8224125,109030.0,109020.0,0.72292896]
[1752073985643,1.20417153,109030.0,109020.0,0.8006965]
[1752073986137,0.8859125,109030.0,109020.0,0.69062896]
[1752073986342,0.8859125,109030.0,109020.0,0.82748686]
[1752073986937,0.8859125,109030.0,109020.0,1.14574589]
[1752073988436,0.8859125,109030.0,109020.0,0.82748686]
[1752073988632,0.8859125,109030.0,109020.0,1.14574589]
[1752073989743,0.8859125,109030.0,109020.0,0.64477316]
[1752073990038,0.8859125,109030.0,109020.0,0.75486531]
[1752073990539,1.88323056,109030.0,109020.0,0.003]
[1752073990742,1.91818799,109030.0,109020.0,0.003]
[1752073990944,1.56497153,109030.0,109020.0,0.11309215]
[1752073991946,1.20417153,109030.0,109020.0,0.11309215]
[1752073992346,1.56497153,109030.0,109020.0,0.11309215]
[1752073993250,1.56597153,109030.0,109020.0,0.11109215]
[1752073993847,1.56497153,109030.0,109020.0,0.11109215]
[1752073994048,1.57297153,109030.0,109020.0,0.11109215]
[1752073994348,1.57297153,109030.0,109020.0,0.001]
[1752073994937,1.57297153,109030.0,109020.0,0.97358058]
[1752073994938,0.2549125,109030.0,109020.0,0.97358058]
[1752073995144,0.8933125,109030.0,109020.0,0.97358058]
[1752073995546,1.21157153,109030.0,109020.0,0.65532155]
[1752073995846,0.57317153,109030.0,109020.0,0.65532155]
[1752073996042,1.21157153,109030.0,109020.0,0.65532155]
[1752073996451,1.21157153,109030.0,109020.0,0.5452294]
[1752073997951,0.0715,109030.0,109020.0,0.89408843]
[1752073998251,0.64636,109030.0,109020.0,1.03708058]
[1752073999255,0.64636,109030.0,109020.0,0.92698843]
[1752073999454,0.64636,109030.0,109020.0,1.06384633]
[1752074001149,0.8297726,109030.0,109020.0,1.06384633]
[1752074001856,0.64636,109030.0,109020.0,1.06384633]
[1752074002346,0.64624,109030.0,109020.0,1.06384633]
[1752074005659,0.008,109030.0,109020.0,1.38210536]
[1752074006049,0.008,109030.0,109020.0,1.06384633]
[1752074007463,0.008,109030.0,109020.0,0.92698843]
[1752074009652,0.1914125,109030.0,109020.0,0.92698843]
[1752074010660,0.2572125,109030.0,109020.0,0.92698843]
[1752074011158,0.2572125,109030.0,109020.0,1.03695643]
[1752074011860,0.2572125,109030.0,109020.0,0.92698843]
[1752074012160,0.0738,109030.0,109020.0,0.92698843]
[1752074013871,0.2572125,109030.0,109020.0,0.92698843]
[1752074014158,0.0738,109030.0,109020.0,0.92698843]
[1752074015464,0.2572125,109030.0,109020.0,0.5758294]
[1752074015658,0.2572125,109030.0,109020.0,0.65519161]
[1752074015856,0.57547153,109030.0,109020.0,0.65519161]
[1752074018456,0.57547153,109030.0,109020.0,0.47176221]
[1752074019463,0.57547153,109030.0,109020.0,0.65519161]
[1752074020961,0.59285612,109030.0,109020.0,0.47176221]
[1752074021667,0.59285612,109030.0,109020.0,0.11096221]
[1752074021964,0.91111515,109030.0,109020.0,0.11096221]
[1752074022267,0.77630412,109030.0,109020.0,0.11096221]
[1752074022661,1.27191515,109030.0,109020.0,0.001]
[1752074023071,0.95365612,109030.0,109020.0,0.001]
[1752074023271,1.27191515,109030.0,109020.0,0.001]
[1752074026685,1.30686519,109030.0,109020.0,0.001]
[1752074026887,0.98860616,109030.0,109020.0,0.001]
[1752074028984,1.30686519,109030.0,109020.0,0.001]
[1752074029184,0.98860616,109030.0,109020.0,0.001]
[1752074031380,0.95365612,109030.0,109020.0,0.001]
[1752074034591,1.27191515,109030.0,109020.0,0.001]
[1752074035192,1.27181515,109030.0,109020.0,0.001]
[1752074037192,0.95355612,109030.0,109020.0,0.001]
[1752074037387,1.27181515,109030.0,109020.0,0.001]
[1752074038285,1.30675018,109030.0,109020.0,0.001]
[1752074040395,1.27181515,109030.0,109020.0,0.001]
[1752074040584,1.30676429,109030.0,109020.0,0.001]
[1752074041294,1.27181515,109030.0,109020.0,0.001]
[1752074041994,1.27181515,109030.0,109000.0,0.71984599]
[1752074041995,0.1834458,109010.0,109000.0,0.71984599]
[1752074042191,1.13894483,109010.0,109000.0,0.71984599]
[1752074043193,1.13994483,109010.0,109000.0,0.71984599]
[1752074046196,1.13990483,109010.0,109000.0,0.71984599]
[1752074046497,0.50270483,109010.0,109000.0,0.71984599]
[1752074046693,0.8216058,109010.0,109000.0,1.03810502]
[1752074047398,0.8216058,109010.0,109000.0,0.71984599]
[1752074047593,1.13986483,109010.0,109000.0,0.71984599]
[1752074047785,1.14910421,109010.0,109000.0,0.71984599]
[1752074049191,1.14910421,109010.0,109000.0,0.47259699]
[1752074049393,1.21240421,109010.0,109000.0,0.47259699]
[1752074050097,1.21240421,109010.0,109000.0,0.48880699]
[1752074052898,1.57320421,109010.0,109000.0,0.11179699]
[1752074053099,1.57420421,109010.0,109000.0,0.00183478]
[1752074053287,1.57320421,109010.0,109000.0,0.00183478]
[1752074053602,1.57620421,109010.0,109000.0,0.00183478]
[1752074054295,1.59396158,109010.0,109000.0,0.00183478]
[1752074054502,1.91222061,109010.0,109000.0,0.00183478]
[1752074054703,0.81998096,109000.0,108990.0,0.11179716]
[1752074054997,0.92732193,109000.0,108990.0,0.11179716]
[1752074055396,1.56424193,109000.0,108990.0,0.11179716]
[1752074055896,1.56524193,109000.0,108990.0,0.11179716]
[1752074056299,1.88550096,109000.0,108990.0,0.11179716]
[1752074058802,1.56724193,109000.0,108990.0,0.12800716]
[1752074059201,1.56724193,109000.0,108990.0,0.11179716]
[1752074059398,1.88550096,109000.0,108990.0,0.11179716]
[1752074060600,1.88550096,109000.0,108990.0,6e-08]
[1752074060601,3.15434096,109000.0,108990.0,6e-08]
[1752074061005,3.33783696,109000.0,108990.0,6e-08]
[1752074061202,0.1834797,108990.0,108970.0,0.4976579]
[1752074061404,0.98939591,108980.0,108960.0,0.60735554]
[1752074061609,0.50177243,108970.0,108960.0,0.62356554]
[1752074061805,0.56697243,108970.0,108960.0,0.67851654]
[1752074062006,0.56797087,108970.0,108960.0,0.67851654]
[1752074062406,0.56797087,108970.0,108960.0,0.29856435]
[1752074062805,0.56797087,108970.0,108960.0,0.30056435]
[1752074063302,0.56797087,108970.0,108960.0,0.26756435]
[1752074063503,0.64083551,108970.0,108960.0,0.21319533]
[1752074063704,0.64993056,108970.0,108960.0,0.18239533]
[1752074064206,0.64993056,108970.0,108960.0,0.14127533]
[1752074064916,0.96818959,108970.0,108960.0,0.14127533]
[1752074065102,1.32898959,108970.0,108960.0,0.14127533]
[1752074065304,1.32898959,108970.0,108960.0,0.00383545]
[1752074065801,1.01073056,108970.0,108960.0,0.00383545]
[1752074066902,1.01173056,108970.0,108960.0,0.00383545]
[1752074067906,1.32998959,108970.0,108960.0,0.00383545]
[1752074068607,1.33098959,108970.0,108960.0,0.00183545]
[1752074070706,1.33098959,108970.0,108960.0,0.11166927]
[1752074073618,1.33119153,108970.0,108960.0,0.12787927]
[1752074073805,1.64945056,108970.0,108960.0,0.12787927]
[1752074074707,1.96770959,108970.0,108960.0,0.12787927]
[1752074075012,1.96770959,108970.0,108960.0,0.11166927]
[1752074077013,1.96770959,108970.0,108960.0,0.00183545]
[1752074077419,1.96770959,108970.0,108960.0,0.11166927]
[1752074078215,1.96770959,108970.0,108960.0,0.12787927]
[1752074078615,1.96770959,108970.0,108960.0,0.11166927]
[1752074078810,1.96770959,108970.0,108960.0,0.00183545]
[1752074080223,0.1835303,108960.0,108950.0,0.03233562]
[1752074080424,1.2463468,108960.0,108950.0,0.14220891]
[1752074081119,1.2463468,108960.0,108950.0,0.00183562]
[1752074081423,1.2463468,108960.0,108950.0,0.1402755]
[1752074081621,1.2463468,108960.0,108950.0,0.1563955]
[1752074081826,1.2463468,108960.0,108950.0,0.2408255]
[1752074082023,1.1818468,108960.0,108950.0,0.4243726]
[1752074082220,1.1818468,108960.0,108950.0,0.4233726]
[1752074082422,1.1838468,108960.0,108950.0,0.2398255]
[1752074082721,1.1838468,108960.0,108950.0,0.1213833]
[1752074083019,2.5148068,108960.0,108950.0,0.1062633]
[1752074083527,2.5158068,108960.0,108950.0,0.1052633]
[1752074085925,2.6534614,108960.0,108950.0,0.10996315]
[1752074086132,0.1835464,108950.0,108940.0,0.0614]
[1752074086321,1.79638986,108950.0,108920.0,0.55444503]
[1752074086519,1.13501116,108930.0,108910.0,0.02486629]
[1752074086723,1.77501593,108920.0,108910.0,0.02486629]
[1752074087020,1.77501593,108920.0,108910.0,0.03998629]
[1752074087021,2.20161437,108920.0,108910.0,0.03998629]
[1752074088225,2.24000931,108920.0,108910.0,0.04098629]
[1752074088425,3.64411144,108920.0,108910.0,0.001]
[1752074088624,3.82770754,108920.0,108910.0,0.001]
[1752074088930,0.50188883,108900.0,108890.0,0.59526201]
[1752074089124,1.77608727,108900.0,108890.0,0.42673541]
[1752074089527,1.78501489,108900.0,108890.0,0.61038201]
[1752074089728,1.78501489,108900.0,108890.0,0.42673541]
[1752074090332,1.78501489,108900.0,108890.0,0.41161541]
[1752074090537,1.78501489,108900.0,108890.0,0.44976541]
[1752074090941,1.78601489,108900.0,108890.0,0.45276541]
[1752074091133,1.78601489,108900.0,108890.0,0.45376541]
[1752074091735,1.78601489,108900.0,108890.0,0.48666541]
[1752074092035,1.78601489,108900.0,108890.0,0.12586541]
[1752074092934,0.18562824,108900.0,108890.0,0.67031211]
[1752074093139,0.82222824,108900.0,108890.0,0.67031211]
[1752074093738,1.14048727,108900.0,108890.0,0.67031211]
[1752074094442,1.14148571,108900.0,108890.0,0.67031211]
[1752074095640,1.14148571,108900.0,108890.0,0.48666541]
[1752074096139,0.50488571,108900.0,108890.0,0.48666541]
[1752074096346,1.47516474,108900.0,108890.0,0.10283541]
[1752074096543,1.49064474,108900.0,108890.0,0.10283541]
[1752074096936,1.56249087,108900.0,108890.0,0.10283541]
[1752074097935,1.95339087,108900.0,108890.0,0.10283541]
[1752074098644,1.59259087,108900.0,108890.0,0.10283541]
[1752074098944,1.59259087,108900.0,108890.0,0.06993541]
[1752074100137,1.59259087,108900.0,108890.0,0.03793541]
[1752074100338,0.25847281,108900.0,108890.0,0.24461211]
[1752074100539,0.25847281,108900.0,108890.0,0.98847114]
[1752074101141,0.82318668,108900.0,108890.0,1.17213514]
[1752074101348,0.00299688,108900.0,108890.0,1.42213514]
[1752074101648,0.63955688,108900.0,108890.0,1.42213514]
[1752074102247,0.82318678,108900.0,108890.0,1.42213514]
[1752074102453,0.00299688,108900.0,108890.0,1.42213514]
[1752074102654,0.63951688,108900.0,108890.0,1.42213514]
[1752074102946,0.82314678,108900.0,108890.0,1.42213514]
[1752074103145,0.63951688,108900.0,108890.0,1.42213514]
[1752074103345,0.00299688,108900.0,108890.0,1.42213514]
[1752074103548,0.63951688,108900.0,108890.0,1.42213514]
[1752074104147,0.00299688,108900.0,108890.0,1.10387611]
[1752074104544,0.00299688,108900.0,108890.0,1.42213514]
[1752074105341,0.00299688,108900.0,108890.0,2.05861514]
[1752074107650,0.00299688,108900.0,108890.0,1.74035611]
[1752074107954,0.00299688,108900.0,108890.0,2.05861514]
[1752074112150,0.01769177,108910.0,108900.0,0.1836298]
[1752074112357,0.01769177,108910.0,108900.0,1.14922682]
[1752074113653,0.01869177,108910.0,108900.0,1.14922682]
[1752074114049,0.01869177,108910.0,108900.0,1.46748585]
[1752074114350,0.27717558,108930.0,108920.0,0.1835961]
[1752074114652,0.96777262,108930.0,108920.0,0.5851861]
[1752074114958,0.03851704,108930.0,108920.0,1.29684513]
[1752074115153,0.03851704,108930.0,108920.0,1.33677339]
[1752074115552,1.02466626,108950.0,108940.0,0.1835624]
[1752074115753,1.07082626,108950.0,108940.0,0.5606324]
[1752074115954,1.07082626,108950.0,108940.0,0.5851524]
[1752074116256,0.9892138,108950.0,108940.0,0.5851524]
[1752074116457,1.38908529,108950.0,108940.0,0.5443624]
[1752074116846,1.38908529,108950.0,108940.0,0.5606324]
[1752074117250,1.31147283,108950.0,108940.0,0.5861524]
[1752074117451,1.26558493,108950.0,108940.0,0.5861524]
[1752074117854,0.9472859,108950.0,108940.0,0.90441143]
[1752074118150,0.8856388,108950.0,108940.0,0.93651143]
[1752074118658,0.0344,108950.0,108940.0,0.93651143]
[1752074119061,0.0324,108950.0,108940.0,1.32791143]
[1752074119260,0.2159457,108950.0,108940.0,1.32791143]
[1752074119851,0.0324,108950.0,108940.0,1.32791143]
[1752074120058,0.002,108950.0,108940.0,1.5304055]
[1752074120255,0.8862301,108960.0,108950.0,0.1835457]
[1752074120454,0.8862301,108960.0,108950.0,0.93549473]
[1752074122059,0.8882301,108960.0,108950.0,0.93649473]
[1752074122261,0.2520301,108960.0,108950.0,0.93649473]
[1752074122664,0.2530301,108960.0,108950.0,0.93649473]
[1752074122852,0.2687901,108960.0,108950.0,0.93649473]
[1752074123054,0.2687901,108960.0,108950.0,0.5861357]
[1752074124057,0.2687901,108960.0,108950.0,0.5453457]
[1752074124260,0.2687901,108960.0,108950.0,0.5861357]
[1752074124463,0.2687901,108960.0,108950.0,0.5453457]
[1752074124661,0.58704913,108960.0,108950.0,0.5698657]
[1752074124864,0.58704913,108960.0,108950.0,0.5861357]
[1752074125461,0.2687901,108960.0,108950.0,0.5861357]
[1752074126566,0.58704913,108960.0,108950.0,0.5861357]
[1752074126861,0.2687901,108960.0,108950.0,0.5861357]
[1752074128359,0.58704913,108960.0,108950.0,0.5861357]
[1752074129160,0.60978913,108960.0,108950.0,0.5616161]
[1752074132873,0.58704913,108960.0,108950.0,0.5616161]
[1752074133260,0.2687892,108960.0,108950.0,0.90439513]
[1752074133863,0.0695,108960.0,108950.0,0.90439513]
[1752074134164,0.8888692,108960.0,108950.0,0.93519513]
[1752074134870,0.9046292,108960.0,108950.0,0.5861361]
[1752074135358,1.22288823,108960.0,108950.0,0.5861361]
[1752074136268,1.22288823,108960.0,108950.0,0.5616161]
[1752074136574,1.24562823,108960.0,108950.0,0.5616161]
[1752074136872,1.24562823,108960.0,108950.0,0.37807]
[1752074137063,1.24562823,108960.0,108950.0,0.5616161]
[1752074137767,1.56388726,108960.0,108950.0,0.37807]
[1752074137965,1.56388726,108960.0,108950.0,0.001]
[1752074138271,1.24562823,108960.0,108950.0,0.001]
[1752074141170,1.26287904,108960.0,108950.0,0.001]
[1752074142972,1.58113807,108960.0,108950.0,0.001]
[1752074143778,1.26287904,108960.0,108950.0,0.001]
[1752074145571,1.58113807,108960.0,108950.0,0.001]
[1752074146176,1.61803472,108960.0,108950.0,0.001]
[1752074147980,1.97883472,108960.0,108950.0,0.001]
[1752074150583,1.97863472,108960.0,108950.0,0.001]
[1752074153475,1.97863472,108960.0,108950.0,1e-07]
[1752074153688,3.24803472,108960.0,108950.0,1e-07]
[1752074157382,3.43159472,108960.0,108950.0,1e-07]
[1752074157889,3.24803472,108960.0,108950.0,1e-07]
[1752074161788,3.43159472,108960.0,108950.0,1e-07]
[1752074163589,3.53159472,108960.0,108950.0,1e-07]
[1752074164891,3.41779472,108960.0,108950.0,1e-07]
[1752074165287,2.78227472,108960.0,108950.0,1e-07]
[1752074165590,3.41779472,108960.0,108950.0,1e-07]
[1752074166793,2.78227472,108960.0,108950.0,1e-07]
[1752074167088,3.23427472,108960.0,108950.0,1e-07]
[1752074168395,2.59775666,108960.0,108950.0,1e-07]
[1752074168591,3.23427472,108960.0,108950.0,1e-07]
[1752074168992,2.59871472,108960.0,108950.0,1e-07]
[1752074169294,2.59871472,108960.0,108950.0,0.199146]
[1752074169295,2.17237666,108960.0,108950.0,0.199146]
[1752074169500,2.49063569,108960.0,108950.0,0.623746]
[1752074169888,1.83033569,108960.0,108950.0,0.646976]
[1752074170193,2.14759666,108960.0,108950.0,0.646976]
[1752074170404,2.14755666,108960.0,108950.0,0.646976]
[1752074170794,2.14755666,108960.0,108950.0,0.608146]
[1752074170994,2.14755666,108960.0,108950.0,0.647136]
[1752074172097,2.46581569,108960.0,108950.0,0.647136]
[1752074172895,2.14755666,108960.0,108950.0,0.647136]
[1752074173100,2.46581569,108960.0,108950.0,0.647136]
[1752074174801,2.14755666,108960.0,108950.0,0.647136]
[1752074175101,2.46581569,108960.0,108950.0,0.647136]
[1752074175300,1.51207666,108960.0,108950.0,0.647136]
[1752074175500,2.14747666,108960.0,108950.0,0.647136]
[1752074175898,1.51207666,108960.0,108950.0,0.647136]
[1752074176095,2.14743666,108960.0,108950.0,0.647136]
[1752074178002,2.46569569,108960.0,108950.0,0.647136]
[1752074178403,2.46569569,108960.0,108950.0,0.4635901]
[1752074178701,2.46569569,108960.0,108950.0,0.6471346]
[1752074179404,2.14743666,108960.0,108950.0,0.6471346]
[1752074180106,0.87795666,108960.0,108950.0,0.96539363]
[1752074180998,0.87795666,108960.0,108950.0,0.6471346]
[1752074181195,0.89356666,108960.0,108950.0,0.6611944]
[1752074181394,0.87795666,108960.0,108950.0,0.96539363]
[1752074181605,0.87795666,108960.0,108950.0,0.97945208]